fUSD/lending_fUSD_20240712
["ID","MTS","AMOUNT","RATE_DAILY","PERIOD"]
[331838454,1720788648321,-1428.55,0.00013698,2]
[331838455,1720788648331,-675.24,0.00013698,2]
[331838456,1720788648341,-500.0,0.00013698,2]
[331838457,1720788648350,-827.76,0.00013698,2]
[331838458,1720788648360,-832.45,0.00013698,2]
[331838459,1720788648371,-305.48207473,0.00013698,2]
[331838460,1720788648381,-151.0,0.00013698,2]
[331838461,1720788648392,-500.0,0.00013698,2]
[331838462,1720788648403,-500.0,0.00013698,2]
[331838463,1720788648413,-500.0,0.00013698,2]
[331838464,1720788648424,-993.45,0.00013698,2]
[331838465,1720788648434,-500.0,0.00013698,2]
[331838466,1720788648443,-847.1,0.00013698,2]
[331838467,1720788648452,-500.0,0.00013698,2]
[331838468,1720788648462,-572.14,0.00013698,2]
[331838469,1720788648471,-1505.4,0.00013698,2]
[331838470,1720788648481,-535.85,0.00013698,2]
[331838471,1720788648491,-500.0,0.00013698,2]
[331838472,1720788648500,-575.66,0.00013698,2]
[331838473,1720788648510,-500.0,0.00013698,2]
[331838474,1720788648519,-598.41,0.00013698,2]
[331838475,1720788648529,-500.0,0.00013698,2]
[331838476,1720788648539,-500.0,0.00013698,2]
[331838477,1720788648549,-2000.0,0.00013698,2]
[331838478,1720788648559,-500.0,0.00013698,2]
[331838479,1720788648569,-500.0,0.00013698,2]
[331838480,1720788648579,-500.0,0.00013698,2]
[331838481,1720788648588,-689.42,0.00013698,2]
[331838482,1720788648598,-929.02,0.00013698,2]
[331838483,1720788648608,-601.25,0.00013698,2]
[331838484,1720788648618,-500.0,0.00013698,2]
[331838485,1720788648628,-806.25,0.00013698,2]
[331838486,1720788648638,-200.0,0.00013698,2]
[331838487,1720788648648,-500.0,0.00013698,2]
[331838488,1720788648658,-151.0,0.00013698,2]
[331838489,1720788648668,-278.645541,0.00013698,2]
[331838490,1720788648678,-152.065809,0.00013698,2]
[331838491,1720788648688,-500.0,0.00013698,2]
[331838492,1720788648698,-156.38871,0.00013698,2]
[331838493,1720788648708,-500.0,0.00013698,2]
[331838494,1720788648725,-859.78,0.00013698,2]
[331838495,1720788648737,-500.0,0.00013698,2]
[331838496,1720788648747,-500.0,0.00013698,2]
[331838497,1720788648756,-500.0,0.00013698,2]
[331838498,1720788648766,-373.02130929,0.00013698,2]
[331838499,1720788648775,-500.0,0.00013698,2]
[331838500,1720788648785,-151.0,0.00013698,2]
[331838501,1720788648795,-500.0,0.00013698,2]
[331838502,1720788648805,-500.0,0.00013698,2]
[331838503,1720788648815,-536.47,0.00013698,2]
[331838504,1720788648824,-668.78,0.00013698,2]
[331838505,1720788648833,-500.0,0.00013698,2]
[331838506,1720788648843,-651.23,0.00013698,2]
[331838507,1720788648852,-642.29,0.00013698,2]
[331838508,1720788648862,-151.0,0.00013698,2]
[331838509,1720788648872,-744.55,0.00013698,2]
[331838510,1720788648881,-500.0,0.00013698,2]
[331838511,1720788648891,-500.0,0.00013698,2]
[331838512,1720788648901,-500.0,0.00013698,2]
[331838513,1720788648911,-500.0,0.00013698,2]
[331838514,1720788648920,-500.0,0.00013698,2]
[331838515,1720788648929,-500.0,0.00013698,2]
[331838516,1720788648939,-887.36,0.00013698,2]
[331838517,1720788648949,-500.0,0.00013698,2]
[331838518,1720788648959,-1194.79,0.00013698,2]
[331838519,1720788648969,-500.0,0.00013698,2]
[331838520,1720788648979,-151.0,0.00013698,2]
[331838521,1720788648988,-500.0,0.00013698,2]
[331838522,1720788648997,-717.55,0.00013698,2]
[331838523,1720788649006,-590.73,0.00013698,2]
[331838524,1720788649016,-500.0,0.00013698,2]
[331838525,1720788649025,-1067.74,0.00013698,2]
[331838526,1720788649034,-560.35,0.00013698,2]
[331838527,1720788649044,-500.0,0.00013698,2]
[331838528,1720788649054,-500.0,0.00013698,2]
[331838529,1720788649063,-652.71,0.00013698,2]
[331838530,1720788649073,-500.0,0.00013698,2]
[331838531,1720788649082,-500.0,0.00013698,2]
[331838532,1720788649091,-500.0,0.00013698,2]
[331838533,1720788649101,-500.0,0.00013698,2]
[331838534,1720788649110,-500.0,0.00013698,2]
[331838535,1720788649120,-500.0,0.00013698,2]
[331838536,1720788649129,-500.0,0.00013698,2]
[331838537,1720788649139,-500.0,0.00013698,2]
[331838538,1720788649148,-500.0,0.00013698,2]
[331838539,1720788649157,-500.0,0.00013698,2]
[331838540,1720788649167,-500.0,0.00013698,2]
[331838541,1720788649176,-500.0,0.00013698,2]
[331838542,1720788649185,-500.0,0.00013698,2]
[331838543,1720788649195,-500.0,0.00013698,2]
[331838544,1720788649205,-500.0,0.00013698,2]
[331838545,1720788649214,-1408.88,0.00013698,2]
[331838546,1720788649223,-500.0,0.00013698,2]
[331838547,1720788649238,-500.0,0.00013698,2]
[331838548,1720788649247,-500.0,0.00013698,2]
[331838549,1720788649257,-718.35,0.00013698,2]
[331838550,1720788649266,-500.0,0.00013698,2]
[331838551,1720788649276,-500.0,0.00013698,2]
[331838552,1720788649286,-502.17,0.00013698,2]
[331838553,1720788649296,-500.0,0.00013698,2]
[331838554,1720788649307,-151.0,0.00013698,2]
[331838555,1720788649316,-151.0,0.00013698,2]
[331838556,1720788649326,-500.0,0.00013698,2]
[331838557,1720788649335,-500.0,0.00013698,2]
[331838558,1720788649345,-151.0,0.00013698,2]
[331838559,1720788649355,-500.0,0.00013698,2]
[331838560,1720788649364,-500.0,0.00013698,2]
[331838561,1720788649374,-682.7,0.00013698,2]
[331838562,1720788649383,-500.0,0.00013698,2]
[331838563,1720788649393,-500.0,0.00013698,2]
[331838564,1720788649407,-500.0,0.00013698,2]
[331838565,1720788649417,-558.09,0.00013698,2]
[331838566,1720788649426,-1116.69,0.00013698,2]
[331838567,1720788649436,-500.0,0.00013698,2]
[331838568,1720788649445,-942.34,0.00013698,2]
[331838569,1720788649454,-500.0,0.00013698,2]
[331838570,1720788649463,-604.77252729,0.00013698,2]
[331838571,1720788649473,-86.89210817,0.00013698,2]
[331838572,1720788649506,-64.10789183,0.00013698,2]
[331838573,1720788649516,-500.0,0.00013698,2]
[331838574,1720788649526,-151.0,0.00013698,2]
[331838575,1720788649536,-500.0,0.00013698,2]
[331838576,1720788649546,-500.0,0.00013698,2]
[331838577,1720788649555,-328.61291129,0.00013698,2]
[331838578,1720788651064,-171.38708871,0.00013698,2]
[331838579,1720788651074,-500.0,0.00013698,2]
[331838580,1720788651084,-133.01747335,0.00013698,2]
[331838581,1720788651875,-425.66252665,0.00013698,2]
[331838582,1720788651885,-500.0,0.00013698,2]
[331838583,1720788651895,-93.23747239,0.00013698,2]
[331838584,1720788651906,-406.76252761,0.00013698,2]
[331838585,1720788651915,-314.17086568,0.00013698,2]
[331838586,1720788651927,-607.82913432,0.00013698,2]
[331838587,1720788651937,-232.080292,0.00013698,2]
[331838588,1720788651947,-672.21,0.00013698,2]
[331838589,1720788651957,-500.0,0.00013698,2]
[331838590,1720788651967,-616.89,0.00013698,2]
[331838591,1720788651976,-550.43,0.00013698,2]
[331838592,1720788651985,-500.0,0.00013698,2]
[331838593,1720788652000,-820.3,0.00013698,2]
[331838594,1720788652009,-2575.99,0.00013698,2]
[331838595,1720788652019,-580.13,0.00013698,2]
[331838596,1720788652030,-500.0,0.00013698,2]
[331838597,1720788652039,-225.50699413,0.00013698,2]
[331838598,1720788782335,1000.0,0.00027,120]
[331838605,1720788991435,1905.09288054,0.00011199,2]
[331838606,1720789007854,47162.49991297,0.00011199,2]
[331838609,1720789121898,420.97,0.00010632,2]
[331838611,1720789139889,579.18613512,0.00011199,2]
[331838612,1720789151546,263.3923088,0.00011199,2]
[331838613,1720789172979,287.51453377,0.00011199,2]
[331838614,1720789174895,358.78684232,0.00011199,2]
[331838615,1720789184039,225.70812466,0.00011199,2]
[331838616,1720789193853,394.63942614,0.00011199,2]
[331838617,1720789216340,174.68449879,0.00011199,2]
[331838619,1720789230533,502.0,0.0001136,2]
[331838620,1720789260733,9367.95449525,0.00011199,2]
[331838622,1720789288241,155.47346272,0.00011199,2]
[331838623,1720789329245,251.65728156,0.00011199,2]
[331838627,1720789457353,386.61821641,0.00011199,2]
[331838629,1720789509234,155.0,0.00011199,2]
[331838632,1720789588870,193.55942427,0.00011199,2]
[331838633,1720789618937,358.78684232,0.00011199,2]
[331838635,1720789658929,2739.59191754,0.00011199,2]
[331838636,1720789668773,427.82,0.00010563,2]
[331838637,1720789688696,525.36408411,0.00011199,2]
[331838638,1720789696259,424.96693983,0.00011199,2]
[331838639,1720789705929,2496.32076378,0.00011199,2]
[331838640,1720789745367,3396.01439276,0.00011199,2]
[331838648,1720789767087,661.61102099,0.00011199,2]
[331838649,1720789771467,2833.71037734,0.00011199,2]
[331838650,1720789773123,2739.59191754,0.00011199,2]
[331838652,1720789781893,2496.32076378,0.00011199,2]
[331838653,1720789791385,1271.86854711,0.00011199,2]
[331838654,1720789806409,1879.80464216,0.00011199,2]
[331838668,1720789831898,-377.73730041,0.0001226,2]
[331838669,1720789831907,-79.55440038,0.00012273,2]
[331838670,1720789831918,-371.77840998,0.00012273,2]
[331838671,1720789831927,-300.0,0.00012301,2]
[331838672,1720789831935,-88.68328369,0.00012302,2]
[331838673,1720789831946,-1041.04,0.00012302,2]
[331838674,1720789831957,-474.84884892,0.00012302,2]
[331838675,1720789831966,-155.0,0.00012314,2]
[331838676,1720789831976,-158.40713201,0.00012314,2]
[331838677,1720789831985,-282.74282178,0.00012314,2]
[331838678,1720789831995,-150.70477216,0.00012452,2]
[331838679,1720789832004,-250.0,0.00012507,2]
[331838680,1720789832013,-213.93,0.00012572,2]
[331838681,1720789832022,-321.82242513,0.00012598,2]
[331838682,1720789832152,-278.17757487,0.00012598,2]
[331838683,1720789832161,-1000.0,0.00012716,2]
[331838684,1720789832170,-168.39,0.00012753,2]
[331838685,1720789832179,-168.23,0.00012762,2]
[331838686,1720789832189,-342.2364129,0.00012762,2]
[331838687,1720789832200,-520.99214389,0.00012762,2]
[331838689,1720789832211,-1010.18269606,0.00012762,2]
[331838703,1720789838050,-4903.82874715,0.00012762,2]
[331838704,1720789838060,-427.82,0.00012827,2]
[331838705,1720789838070,-529.07,0.000129,2]
[331838706,1720789838081,-763.35,0.000129,2]
[331838707,1720789838091,-153.33,0.000129,2]
[331838708,1720789838105,-171.36,0.00013072,2]
[331838709,1720789838115,-177.51,0.00013092,2]
[331838710,1720789838127,-600.0,0.00013123,2]
[331838711,1720789838137,-255.23093021,0.00013128,2]
[331838712,1720789838148,-530.49341065,0.00013128,2]
[331838713,1720789838158,-627.3421678,0.00013128,2]
[331838714,1720789838168,-570.48323653,0.00013128,2]
[331838715,1720789838178,-358.78684232,0.00013128,2]
[331838716,1720789838189,-1125.55365818,0.00013424,2]
[331838717,1720789838198,-233.782,0.0001346,2]
[331838718,1720789838208,-5818.0,0.00013476,2]
[331838719,1720789838218,-150.0,0.00013476,2]
[331838720,1720789838227,-1499.58868304,0.00013476,2]
[331838721,1720789838240,-3674.41131696,0.00013476,2]
[331838722,1720789838249,-21280.689,0.00013476,2]
[331838723,1720789838259,-407.171,0.00013476,2]
[331838724,1720789838269,-723.101,0.00013476,2]
[331838725,1720789838280,-155.43704552,0.00013516,2]
[331838726,1720789838289,-1444.51358906,0.00013516,2]
[331838727,1720789838299,-155.0,0.00013543,2]
[331838728,1720789838310,-296.57501,0.0001356,2]
[331838729,1720789838320,-661.61102099,0.00013574,2]
[331838730,1720789838330,-196.98660446,0.00013598,2]
[331838731,1720789838340,-9508.7289,0.00013598,2]
[331838732,1720789838351,-306.17,0.00013598,2]
[331838733,1720789838361,-2187.9494578,0.00013691,2]
[331838734,1720789838370,-20724.4869437,0.00013691,2]
[331838735,1720789838382,-408.66224937,0.00013691,2]
[331838736,1720789838412,-1361.61327383,0.00013691,2]
[331838737,1720789838422,-336.40859562,0.00013691,2]
[331838738,1720789838434,-128.52803878,0.00013691,2]
[331838739,1720789838444,-126.40718977,0.00013697,2]
[331838740,1720789838495,-169.76316945,0.00013697,2]
[331838741,1720789838505,-626.68474258,0.00013697,2]
[331838743,1720789838518,-2132.08023122,0.00013697,2]
[331838745,1720789838529,-757.29,0.00013698,2]
[331838746,1720789838539,-500.0,0.00013698,2]
[331838747,1720789838550,-500.0,0.00013698,2]
[331838748,1720789838559,-500.0,0.00013698,2]
[331838749,1720789838568,-500.0,0.00013698,2]
[331838750,1720789838577,-824.33,0.00013698,2]
[331838751,1720789838587,-500.0,0.00013698,2]
[331838752,1720789838600,-655.2,0.00013698,2]
[331838753,1720789838609,-500.0,0.00013698,2]
[331838754,1720789838618,-500.0,0.00013698,2]
[331838755,1720789838629,-500.0,0.00013698,2]
[331838756,1720789838640,-500.0,0.00013698,2]
[331838757,1720789838651,-500.0,0.00013698,2]
[331838758,1720789838661,-740.8,0.00013698,2]
[331838759,1720789838670,-500.0,0.00013698,2]
[331838760,1720789838680,-579.73,0.00013698,2]
[331838761,1720789838689,-500.0,0.00013698,2]
[331838762,1720789838699,-500.0,0.00013698,2]
[331838763,1720789838708,-736.82,0.00013698,2]
[331838764,1720789838718,-500.0,0.00013698,2]
[331838765,1720789838727,-677.32,0.00013698,2]
[331838766,1720789838737,-500.0,0.00013698,2]
[331838767,1720789838747,-500.0,0.00013698,2]
[331838768,1720789838757,-500.0,0.00013698,2]
[331838769,1720789838767,-671.91,0.00013698,2]
[331838770,1720789838776,-500.0,0.00013698,2]
[331838771,1720789838786,-500.0,0.00013698,2]
[331838772,1720789838795,-500.0,0.00013698,2]
[331838773,1720789838804,-500.0,0.00013698,2]
[331838774,1720789838814,-566.77,0.00013698,2]
[331838775,1720789838824,-500.0,0.00013698,2]
[331838776,1720789838833,-500.0,0.00013698,2]
[331838777,1720789838843,-500.0,0.00013698,2]
[331838778,1720789838853,-537.1,0.00013698,2]
[331838779,1720789838863,-500.0,0.00013698,2]
[331838780,1720789838873,-500.0,0.00013698,2]
[331838781,1720789838882,-500.0,0.00013698,2]
[331838782,1720789838893,-500.0,0.00013698,2]
[331838783,1720789838903,-596.69,0.00013698,2]
[331838784,1720789838913,-500.0,0.00013698,2]
[331838785,1720789838923,-500.0,0.00013698,2]
[331838786,1720789838932,-500.0,0.00013698,2]
[331838787,1720789838942,-500.0,0.00013698,2]
[331838788,1720789838952,-500.0,0.00013698,2]
[331838789,1720789838962,-657.88,0.00013698,2]
[331838790,1720789838971,-500.0,0.00013698,2]
[331838791,1720789838981,-678.82,0.00013698,2]
[331838792,1720789838991,-500.0,0.00013698,2]
[331838793,1720789839000,-500.0,0.00013698,2]
[331838794,1720789839009,-500.0,0.00013698,2]
[331838795,1720789839019,-500.0,0.00013698,2]
[331838796,1720789839029,-363.98281322,0.00013698,2]
[331838797,1720789839039,-500.0,0.00013698,2]
[331838798,1720789839048,-934.6,0.00013698,2]
[331838799,1720789839058,-500.0,0.00013698,2]
[331838800,1720789839068,-603.66,0.00013698,2]
[331838801,1720789839077,-538.11,0.00013698,2]
[331838802,1720789839087,-500.0,0.00013698,2]
[331838803,1720789839097,-500.0,0.00013698,2]
[331838804,1720789839106,-752.29,0.00013698,2]
[331838805,1720789839116,-500.0,0.00013698,2]
[331838806,1720789839125,-500.0,0.00013698,2]
[331838807,1720789839134,-500.0,0.00013698,2]
[331838808,1720789839144,-500.0,0.00013698,2]
[331838809,1720789839153,-620.67,0.00013698,2]
[331838810,1720789839162,-500.0,0.00013698,2]
[331838811,1720789839172,-500.0,0.00013698,2]
[331838812,1720789839181,-623.06,0.00013698,2]
[331838813,1720789839191,-500.0,0.00013698,2]
[331838814,1720789839200,-758.64,0.00013698,2]
[331838815,1720789839210,-500.0,0.00013698,2]
[331838816,1720789839219,-500.0,0.00013698,2]
[331838817,1720789839229,-500.0,0.00013698,2]
[331838818,1720789839238,-500.0,0.00013698,2]
[331838819,1720789839248,-500.0,0.00013698,2]
[331838820,1720789839258,-500.0,0.00013698,2]
[331838821,1720789839267,-500.0,0.00013698,2]
[331838822,1720789839277,-437.99959636,0.00013698,2]
[331838823,1720789839286,-614.17,0.00013698,2]
[331838824,1720789839296,-500.0,0.00013698,2]
[331838825,1720789839305,-510.76,0.00013698,2]
[331838826,1720789839315,-500.0,0.00013698,2]
[331838827,1720789839324,-500.0,0.00013698,2]
[331838828,1720789839333,-500.0,0.00013698,2]
[331838829,1720789839343,-723.43,0.00013698,2]
[331838830,1720789839354,-500.0,0.00013698,2]
[331838831,1720789839364,-835.15,0.00013698,2]
[331838832,1720789839374,-500.0,0.00013698,2]
[331838833,1720789839383,-500.0,0.00013698,2]
[331838834,1720789839393,-676.94,0.00013698,2]
[331838835,1720789839403,-500.0,0.00013698,2]
[331838836,1720789839412,-500.0,0.00013698,2]
[331838837,1720789839422,-500.0,0.00013698,2]
[331838838,1720789839431,-500.0,0.00013698,2]
[331838839,1720789839440,-500.0,0.00013698,2]
[331838840,1720789839450,-573.47,0.00013698,2]
[331838841,1720789839460,-678.03,0.00013698,2]
[331838842,1720789839469,-500.0,0.00013698,2]
[331838843,1720789839479,-626.32,0.00013698,2]
[331838844,1720789839488,-769.9,0.00013698,2]
[331838845,1720789839498,-612.75,0.00013698,2]
[331838846,1720789839507,-500.0,0.00013698,2]
[331838847,1720789839516,-500.0,0.00013698,2]
[331838848,1720789839526,-437.57187432,0.00013698,2]
[331838849,1720789839545,-62.42812568,0.00013698,2]
[331838850,1720789839554,-500.0,0.00013698,2]
[331838851,1720789839563,-500.0,0.00013698,2]
[331838852,1720789839573,-500.0,0.00013698,2]
[331838853,1720789839582,-500.0,0.00013698,2]
[331838854,1720789839597,-500.0,0.00013698,2]
[331838855,1720789839606,-500.0,0.00013698,2]
[331838856,1720789839615,-500.0,0.00013698,2]
[331838857,1720789839626,-243.45958738,0.00013698,2]
[331838858,1720789839638,-256.54041262,0.00013698,2]
[331838859,1720789839648,-500.0,0.00013698,2]
[331838860,1720789839657,-500.0,0.00013698,2]
[331838862,1720789839676,-500.0,0.00013698,2]
[331838863,1720789839693,-500.0,0.00013698,2]
[331838864,1720789839706,-500.0,0.00013698,2]
[331838865,1720789839720,-469.27179404,0.00013698,2]
[331838866,1720789839734,-500.0,0.00013698,2]
[331838867,1720789839749,-365.38492572,0.00013698,2]
[331838868,1720789839763,-500.0,0.00013698,2]
[331838869,1720789839779,-329.41554011,0.00013698,2]
[331838870,1720789839793,-500.0,0.00013698,2]
[331838871,1720789839807,-500.0,0.00013698,2]
[331838874,1720789839822,-500.0,0.00013698,2]
[331838875,1720789839835,-500.0,0.00013698,2]
[331838876,1720789839847,-500.0,0.00013698,2]
[331838877,1720789839861,-500.0,0.00013698,2]
[331838878,1720789839874,-500.0,0.00013698,2]
[331838879,1720789839889,-500.0,0.00013698,2]
[331838881,1720789839904,-500.0,0.00013698,2]
[331838883,1720789839920,-500.0,0.00013698,2]
[331838885,1720789839935,-500.0,0.00013698,2]
[331838888,1720789839947,-513.53,0.00013698,2]
[331838890,1720789839958,-500.0,0.00013698,2]
[331838892,1720789839973,-500.0,0.00013698,2]
[331838893,1720789839988,-707.43,0.00013698,2]
[331838894,1720789840000,-500.0,0.00013698,2]
[331838895,1720789840014,-587.78,0.00013698,2]
[331838896,1720789840031,-500.0,0.00013698,2]
[331838897,1720789840044,-618.46,0.00013698,2]
[331838898,1720789840056,-500.0,0.00013698,2]
[331838899,1720789840068,-500.0,0.00013698,2]
[331838900,1720789840085,-500.0,0.00013698,2]
[331838901,1720789840096,-500.0,0.00013698,2]
[331838902,1720789840109,-500.0,0.00013698,2]
[331838903,1720789840121,-500.0,0.00013698,2]
[331838904,1720789840133,-500.0,0.00013698,2]
[331838905,1720789840146,-629.68,0.00013698,2]
[331838906,1720789840158,-500.0,0.00013698,2]
[331838907,1720789840171,-500.0,0.00013698,2]
[331838908,1720789840184,-500.0,0.00013698,2]
[331838909,1720789840197,-500.0,0.00013698,2]
[331838910,1720789840209,-500.0,0.00013698,2]
[331838911,1720789840224,-985.73,0.00013698,2]
[331838912,1720789840237,-494.5,0.00013698,2]
[331838913,1720789840250,-500.0,0.00013698,2]
[331838914,1720789840263,-500.0,0.00013698,2]
[331838915,1720789840275,-500.0,0.00013698,2]
[331838916,1720789840287,-500.0,0.00013698,2]
[331838917,1720789840301,-500.0,0.00013698,2]
[331838918,1720789840313,-500.0,0.00013698,2]
[331838919,1720789840328,-827.92,0.00013698,2]
[331838920,1720789840341,-500.0,0.00013698,2]
[331838921,1720789840354,-509.63,0.00013698,2]
[331838922,1720789840367,-500.0,0.00013698,2]
[331838923,1720789840380,-500.0,0.00013698,2]
[331838924,1720789840393,-500.0,0.00013698,2]
[331838925,1720789840405,-500.0,0.00013698,2]
[331838926,1720789840419,-151.0,0.00013698,2]
[331838927,1720789840432,-151.0,0.00013698,2]
[331838928,1720789840446,-500.0,0.00013698,2]
[331838929,1720789840459,-500.0,0.00013698,2]
[331838930,1720789840472,-681.55,0.00013698,2]
[331838931,1720789840484,-500.0,0.00013698,2]
[331838932,1720789840496,-500.0,0.00013698,2]
[331838933,1720789840508,-500.0,0.00013698,2]
[331838934,1720789840520,-537.0,0.00013698,2]
[331838935,1720789840533,-151.0,0.00013698,2]
[331838936,1720789840545,-645.05,0.00013698,2]
[331838937,1720789840557,-500.0,0.00013698,2]
[331838938,1720789840569,-500.0,0.00013698,2]
[331838939,1720789840581,-640.92,0.00013698,2]
[331838940,1720789840598,-500.0,0.00013698,2]
[331838941,1720789840611,-1445.36,0.00013698,2]
[331838942,1720789840625,-500.0,0.00013698,2]
[331838943,1720789840640,-820.69,0.00013698,2]
[331838944,1720789840653,-597.9,0.00013698,2]
[331838945,1720789840670,-500.0,0.00013698,2]
[331838946,1720789840683,-500.0,0.00013698,2]
[331838947,1720789840696,-500.0,0.00013698,2]
[331838948,1720789840709,-500.0,0.00013698,2]
[331838949,1720789840720,-500.0,0.00013698,2]
[331838950,1720789840734,-534.28,0.00013698,2]
[331838951,1720789840746,-1393.2,0.00013698,2]
[331838952,1720789840759,-500.0,0.00013698,2]
[331838953,1720789840771,-500.0,0.00013698,2]
[331838954,1720789840784,-500.0,0.00013698,2]
[331838955,1720789840796,-500.0,0.00013698,2]
[331838956,1720789840809,-500.0,0.00013698,2]
[331838957,1720789840821,-500.0,0.00013698,2]
[331838958,1720789840834,-826.27,0.00013698,2]
[331838959,1720789840848,-500.0,0.00013698,2]
[331838960,1720789840861,-500.0,0.00013698,2]
[331838961,1720789840873,-240.95209177,0.00013698,2]
[331838962,1720789840885,-1145.05,0.00013698,2]
[331838963,1720789840897,-929.19,0.00013698,2]
[331838964,1720789840909,-500.0,0.00013698,2]
[331838965,1720789840922,-604.55,0.00013698,2]
[331838966,1720789840934,-500.0,0.00013698,2]
[331838967,1720789840947,-636.01,0.00013698,2]
[331838968,1720789840959,-705.51,0.00013698,2]
[331838969,1720789840971,-500.0,0.00013698,2]
[331838970,1720789840983,-500.0,0.00013698,2]
[331838971,1720789840995,-151.0,0.00013698,2]
[331838972,1720789841007,-500.0,0.00013698,2]
[331838973,1720789841019,-500.0,0.00013698,2]
[331838974,1720789841031,-500.0,0.00013698,2]
[331838975,1720789841044,-500.0,0.00013698,2]
[331838976,1720789841056,-1169.39,0.00013698,2]
[331838977,1720789841068,-720.27,0.00013698,2]
[331838978,1720789841080,-500.0,0.00013698,2]
[331838979,1720789841092,-500.0,0.00013698,2]
[331838980,1720789841105,-500.0,0.00013698,2]
[331838981,1720789841117,-706.7,0.00013698,2]
[331838982,1720789841129,-936.55,0.00013698,2]
[331838983,1720789841142,-500.0,0.00013698,2]
[331838984,1720789841154,-502.55,0.00013698,2]
[331838985,1720789841166,-527.5,0.00013698,2]
[331838986,1720789841179,-500.0,0.00013698,2]
[331838987,1720789841193,-350.0,0.00013698,2]
[331838988,1720789841207,-350.0,0.00013698,2]
[331838989,1720789841220,-1506.68,0.00013698,2]
[331838990,1720789841234,-350.0,0.00013698,2]
[331838991,1720789841247,-350.0,0.00013698,2]
[331838992,1720789841259,-500.0,0.00013698,2]
[331838993,1720789841272,-859.99,0.00013698,2]
[331838994,1720789841284,-638.57,0.00013698,2]
[331838995,1720789841296,-500.0,0.00013698,2]
[331838996,1720789841308,-500.0,0.00013698,2]
[331838997,1720789841320,-579.19,0.00013698,2]
[331838998,1720789841332,-500.0,0.00013698,2]
[331838999,1720789841344,-500.0,0.00013698,2]
[331839000,1720789841359,-500.0,0.00013698,2]
[331839001,1720789841372,-500.0,0.00013698,2]
[331839002,1720789841385,-500.0,0.00013698,2]
[331839003,1720789841397,-500.0,0.00013698,2]
[331839004,1720789841410,-1078.81,0.00013698,2]
[331839005,1720789841422,-730.99,0.00013698,2]
[331839006,1720789841434,-519.37,0.00013698,2]
[331839007,1720789841446,-1123.7,0.00013698,2]
[331839008,1720789841457,-653.68,0.00013698,2]
[331839009,1720789841470,-500.0,0.00013698,2]
[331839010,1720789841482,-875.36,0.00013698,2]
[331839011,1720789841494,-500.0,0.00013698,2]
[331839012,1720789841508,-500.0,0.00013698,2]
[331839013,1720789841520,-500.0,0.00013698,2]
[331839014,1720789841532,-734.94,0.00013698,2]
[331839015,1720789841544,-500.0,0.00013698,2]
[331839016,1720789841556,-500.0,0.00013698,2]
[331839017,1720789841569,-500.0,0.00013698,2]
[331839018,1720789841582,-596.00423555,0.00013698,2]